Cogmind - Beta 13 @@@ ROGUE MODE // 2024.04.20 @ 23:30:20 Player: Tenderz Result: Destroyed by GO-GYU(R) with Subdweller Shrapnel Launcher Performance ------------- Evolutions (0) 0 Regions Visited (2) 400 Robots Destroyed (21) 105 Value Destroyed (545) 545 Prototype IDs (0) 0 Alien Tech Used (0) 0 Bonus (0) 0 TOTAL SCORE: 1050 Bonus ------- None Cogmind --------- Core Integrity 0/250 Matter 85/300 Energy 250/250 System Corruption 0% Temperature Cool (0) Movement Walking (120) Location -10/Subcaves Parts ------- > --- POWER (1) -------- Ion Engine > --- PROPULSION (2) --- Aluminum Leg Aluminum Leg > --- UTILITY (2) ------ Small Storage Unit Seismic Detector > --- WEAPON (2) ------- Assault Rifle Grenade Launcher > --- INVENTORY (8) ---- Light Treads Light Treads Aluminum Leg High-capacity Battery (250) Medium Matter Pod (100) EM Pulse Gun Subdweller Laser Mining Laser Peak State ------------ > --- POWER ------------ Ion Engine > --- PROPULSION ------- Compact Wheel Compact Wheel > --- UTILITY ---------- Small Storage Unit Improved Terrain Scanner > --- WEAPON ----------- EM Pulse Gun Assault Rifle > --- INVENTORY -------- Light Ion Engine Light Treads Light Treads Aluminum Leg Aluminum Leg Wheel Compact Wheel EM Pulse Gun [Rating: 9] Favorites ----------- Power Ion Engine Engine Ion Engine Propulsion Aluminum Leg Leg Aluminum Leg Wheel Compact Wheel Utility Small Storage Unit Device Seismic Detector Storage Small Storage Unit Weapon Assault Rifle Energy Gun EM Pulse Gun Ballistic Gun Assault Rifle Launcher Grenade Launcher Special Weapon Mining Laser Build | -11 -10 -10 ------- Run | Yrd Mat Sub Slots Evolved . | . . . Power . | . . . Propulsion . | . . . Utility . | . . . Weapon . | . . . Parts Attached 26 | 8 13 5 Power 2 | 1 1 . Engine 2 | 1 1 . Core . | . . . Reactor . | . . . Propulsion 5 | 2 2 1 Treads . | . . . Leg 3 | . 2 1 Wheel 2 | 2 . . Hover . | . . . Flight . | . . . Utility 4 | 2 2 . Device 3 | 1 2 . Storage 1 | 1 . . Processor . | . . . Hackware . | . . . Protection . | . . . Artifact . | . . . Weapon 15 | 3 8 4 Energy Gun 4 | 2 2 . Energy Cannon . | . . . Ballistic Gun 3 | 1 1 1 Ballistic Cannon . | . . . Launcher 4 | . 2 2 Special Weapon 4 | . 3 1 Impact Weapon . | . . . Slashing Weapon . | . . . Piercing Weapon . | . . . Special Melee Weapon . | . . . Unidentified Prototypes . | . . . Parts Lost 4 | . 3 1 Power . | . . . Propulsion . | . . . Utility 1 | . 1 . Weapon 3 | . 2 1 Highest Loss Streak 2 | . 2 1 To Critical Strikes . | . . . Average Slot Usage (%) 98 | . 96 99 Engine 14 | . 14 14 Leg 25 | . 23 28 Wheel 2 | . 4 . Device 13 | . 13 14 Storage 14 | . 14 14 Energy Gun 1 | . 2 . Ballistic Gun 10 | . 12 8 Launcher 11 | . 4 17 Special Weapon 3 | . 5 2 Naked Turns . | . . . Heaviest Build 17 | 15 16 17 Greatest Support 32 | 32 32 20 Greatest Overweight (x) . | . . . Average Overweight (x) . | . . . Largest Inventory Capacity 8 | 8 8 8 Average Capacity 7 | 6 8 8 Most Carried 8 | 8 8 8 Average Carried 7 | 4 7 7 Final Capacity 8 | 8 8 8 Final Carried 8 | 8 8 8 Class Distribution -------------------- 100% | Mutant Dominant Class ---------------- Mutant | -10/Materials Mutant | -10/Subcaves Resources | -11 -10 -10 ----------- Run | Yrd Mat Sub Matter Collected 774 | 281 476 17 Remotely . | . . . Salvage Created 678 | 89 508 81 Parts 42 | 5 24 13 Haulers Intercepted 1 | . 1 . Recyclers Shooed 6 | . 6 . Parts Field Recycled . | . . . Retrieved Matter . | . . . Parts Self-Destructed 13 | . . 13 Prevented . | . . . Kills | -11 -10 -10 ------- Run | Yrd Mat Sub Combat Hostiles Destroyed 16 | . 12 4 Guns 6 | . 6 . AOE 10 | . 6 4 Classes Destroyed 8 | 2 4 2 Builder 1 | . 1 . Tunneler 1 | 1 . . Hauler 1 | . 1 . Recycler 2 | 1 1 . Swarmer 3 | . 3 . Grunt 9 | . 9 . Artisan 1 | . . 1 Subdweller 4 | . . 4 Best Kill Streak 6 | 1 6 2 Combat Bots Only 4 | . 4 2 Max Kills in Single Turn 2 | 1 2 1 Gunslinging . | . . . Exploded 2 | . 2 1 Melee . | . . . Uniques/NPCs Destroyed . | . . . Combat | -11 -10 -10 -------- Run | Yrd Mat Sub Hostile Shots Fired 68 | . 55 13 Missed 21 | . 17 4 Damage Taken 774 | . 461 313 Core 251 | . 120 131 Absorbed by Shields . | . . . Core Remaining (%) 100 | 100 . . Volleys Fired 106 | 21 66 19 Largest 2 | 1 2 2 Hottest 100 | 20 100 100 Shots Fired 128 | 21 79 28 Gun 92 | 21 64 7 Cannon . | . . . Launcher 23 | . 8 15 Special 13 | . 7 6 Kinetic 73 | 21 45 7 Thermal 13 | . 7 6 Explosive 23 | . 8 15 Electromagnetic 19 | . 19 . Robot Hit Streak 6 | 4 6 6 Robot Miss Streak 2 | 1 2 . Penetration Max . | . . . Secondary Targets . | . . . Shots Hit Robots 64 | 15 47 2 Core Hits 39 | 3 26 10 Critical Kills . | . . . Critical Parts Destroyed . | . . . Critical Strikes . | . . . Melee Attacks . | . . . Impact . | . . . Slashing . | . . . Piercing . | . . . Sneak Attacks . | . . . Combat Hostiles . | . . . Follow-up Attacks . | . . . Damage Inflicted 1825 | 191 1067 567 Guns 783 | 191 582 10 Cannons . | . . . Explosions 1042 | . 485 557 Melee . | . . . Ramming . | . . . Kinetic 614 | 191 413 10 Thermal . | . . . Explosive 1042 | . 485 557 Electromagnetic 169 | . 169 . Impact . | . . . Slashing . | . . . Piercing . | . . . Highest Corruption . | . . . Average Corruption . | . . . Corruption Purged . | . . . Corruption Blocked . | . . . Overload Shots . | . . . Overflow Damage 14 | . 14 . Projectiles . | . . . Explosions 14 | . 14 . Melee . | . . . Knockbacks . | . . . Impact . | . . . Kinetic . | . . . Secondary . | . . . Self-Inflicted Damage 76 | . 61 15 Shots 3 | . 2 1 Rammed . | . . . Targets Rammed . | . . . Kicked . | . . . Crushed . | . . . Highest Temperature 114 | . 114 . Average Temperature 40 | . 40 . Received Heat Transfer 237 | . 195 42 Siege Activations . | . . . Robots Corrupted . | . . . Combat Hostiles . | . . . Parts Fried . | . . . Impact Corruptions . | . . . Robots Melted . | . . . Combat Hostiles . | . . . Parts Melted . | . . . Heat Transferred . | . . . Parts Sabotaged . | . . . Parts Stolen . | . . . Parts Stripped . | . . . Power Chain Reactions . | . . . Alert | -11 -10 -10 ------- Run | Yrd Mat Sub Peak Influence 303 | 10 303 . Initial 6 | . 6 . Average 148 | 3 181 . Maximum Alert Level 1 | . 1 . Low Security (%) 63 | 100 54 . Level 1 36 | . 45 . Level 2 . | . . . Level 3 . | . . . Level 4 . | . . . Level 5 . | . . . High Security . | . . . Max Security . | . . . Squads Dispatched 2 | . 2 . Investigation 1 | . 1 . Extermination . | . . . Reinforcement 1 | . 1 . Assault . | . . . Garrison . | . . . Intercept . | . . . Searches Triggered . | . . . Construction Impeded . | . . . Haulers Reinforced . | . . . Active Scanning Responses . | . . . Cargo Convoy Interrupts . | . . . Stealth | -11 -10 -10 --------- Run | Yrd Mat Sub Distress Signals 1 | . 1 . Communications Jammed . | . . . Distress Signals . | . . . Times Spotted 23 | . 18 5 Peak Tracking Total 4 | . 4 2 Tactical Retreats 2 | . 2 . Traps | -11 -10 -10 ------- Run | Yrd Mat Sub Traps Triggered 1 | . 1 . Indirectly . | . . . Trap Hack Attempts . | . . . Triggered . | . . . Disarmed . | . . . Reprogrammed . | . . . Reused . | . . . Traps Extracted . | . . . Installed . | . . . Triggered . | . . . Machines | -11 -10 -10 ---------- Run | Yrd Mat Sub Machines Disabled 2 | . 2 . Max in Single Turn 1 | . 1 . Machines Repaired . | . . . Machines Dismantled . | . . . Machines Sabotaged . | . . . Overloaded Fab Kills . | . . . Hacking | -11 -10 -10 --------- Run | Yrd Mat Sub Machines Accessed 4 | . 4 . Terminals 3 | . 3 . Fabricators . | . . . Repair Stations . | . . . Recycling Units 1 | . 1 . Scanalyzers . | . . . Garrison Access . | . . . Total Hacks 11 | . 11 . Successful 5 | . 5 . Failed 6 | . 6 . Catastrophic 1 | . 1 . Database Lockouts . | . . . Manual 7 | . 7 . Terminals 8 | . 8 . Fabricators . | . . . Repair Stations . | . . . Recycling Units 3 | . 3 . Scanalyzers . | . . . Garrison Access . | . . . Terminal Hacks 4 | . 4 . Part Schematic 2 | . 2 . Terminal Index 1 | . 1 . Recycling Unit Index 1 | . 1 . Fabricator Hacks . | . . . Repair Station Hacks . | . . . Recycling Unit Hacks 1 | . 1 . Retrieve Components 1 | . 1 . Scanalyzer . | . . . Garrison Access Hacks . | . . . Unauthorized Hacks . | . . . Terminals . | . . . Fabricators . | . . . Repair Stations . | . . . Recycling Units . | . . . Scanalyzers . | . . . Garrison Access . | . . . Data Cores Recovered . | . . . Used . | . . . Hacking Detections 4 | . 4 . Full Trace Events 1 | . 1 . Feedback Events . | . . . Feedback Blocked . | . . . Robot Schematics Acquired . | . . . Robots Built . | . . . Authchips . | . . . Time . | . . . Total Robot Build Rating . | . . . Part Schematics Acquired 2 | . 2 . Parts Built . | . . . Authchips . | . . . Time . | . . . Total Part Build Rating . | . . . Parts Repaired . | . . . Time . | . . . Parts Recycled . | . . . Recycled Matter . | . . . Retrieved Matter . | . . . Retrieved Components 3 | . 3 . Parts Scanalyzed . | . . . Part Schematics Acquired . | . . . Parts Damaged . | . . . Bothacking | -11 -10 -10 ------------ Run | Yrd Mat Sub Used RIF Installer . | . . . Robots Hacked . | . . . Non-combat . | . . . Combat . | . . . Robot Hacks Applied . | . . . Relay Couplers Released . | . . . Fabnet Peak Effective % . | . . . Robots Rewired . | . . . Allies Hacked . | . . . Hacks Repelled . | . . . Allies | -11 -10 -10 -------- Run | Yrd Mat Sub Total Allies . | . . . Largest Group . | . . . Highest-Rated Group . | . . . Highest-Rated Ally . | . . . Total Orders . | . . . Ally Attacks . | . . . Total Damage . | . . . Kills . | . . . Allies Corrupted . | . . . Allies Melted . | . . . Intel | -11 -10 -10 ------- Run | Yrd Mat Sub Robot Analysis Total . | . . . Derelict Logs Recovered . | . . . Drone Launches . | . . . Drone Recoveries . | . . . Exploration | -11 -10 -10 ------------- Run | Yrd Mat Sub Turns Passed 1460 | 142 619 699 Spaces Moved 871 | 84 284 503 Core 9 | 9 . . Treads . | . . . Legs 749 | . 246 503 Wheels 113 | 75 38 . Hover . | . . . Flight . | . . . Fastest Speed 50 | 50 100 120 Average Speed 116 | 94 117 120 Slowest Speed 120 | 100 120 120 Overloaded Moves . | . . . Propulsion Burnouts . | . . . Robots Hopped . | . . . Cave-ins Triggered . | . . . Exploration Rate (%) 27 | 4 49 30 Regions Visited 2 Branch Regions 1 Pre-discovered Areas . | . . . Known Exits Taken . | . . . Unknown Exits Taken 2 | 1 1 . Scrap Searched . | . . . Spaces Dug 7 | . 7 . Terrain Destroyed 90 | . 39 51 Melee . | . . . Projectile 7 | . 7 . AOE 83 | . 32 51 Terrain Rammed . | . . . Walls Destroyed . | . . . Machines Disabled . | . . . Actions | -11 -10 -10 --------- Run | Yrd Mat Sub Total 1154 | 122 474 558 Wait 129 | . 99 30 Move 869 | 83 283 503 Hop . | . . . Pick Up 17 | 9 7 1 Fast Attach 8 | 7 1 . Attach 3 | . 2 1 Detach . | . . . Swap 15 | 1 10 4 Drop 7 | 1 6 . Fire 106 | 21 66 19 Melee . | . . . Ram . | . . . Kick . | . . . Crush . | . . . Escape Stasis . | . . . Rewire . | . . . Trap . | . . . Miscellaneous . | . . . Route ------- -11/Scrapyard -10/Materials (discovered 4 exits: [*Mat x2] / [*Min] / [*Sub]) -10/Subcaves History --------- Turn | Location | Event 5 | -11/Scrapyard | Discovered new exit (range 15) 143 | -11/Scrapyard | Entered Materials 154 | -10/Materials | Discovered new exit (range 15) 215 | -10/Materials | Discovered new exit (range 16) 310 | -10/Materials | Build established: Mutant 355 | -10/Materials | Discovered new exit (range 16) 509 | -10/Materials | Discovered new exit (range 3) 762 | -10/Materials | Entered Subcaves 1035 | -10/Subcaves | Core integrity fell below 50% 1273 | -10/Subcaves | A swath of the cavern ceiling suddenly collapsed 1461 | -10/Subcaves | Destroyed by GO-GYU(R) with Subdweller Shrapnel Launcher Last Messages --------------- 01027_ Acquired 13 matter. 01032_ 3R-KBH(R) destroyed. 01032_ Grenade Launcher destroyed. 01051_ C8-2NO(R) affixes Scrap Shield Fragment to Scrap Shield. 01061_ C8-2NO(R) destroyed. 01066_ Subatomizers dissect the Disposable Heat Sink. 01077_ Acquired Sub. Laser. 01086_ Subatomizers dissect the Disposable Heat Sink. 01139_ Subatomizers dissect the Sub. Laser, destroying it. 01153_ Acquired 4 matter. 01215_ 3A-JPD(u) tweaks Twisted Machinery. A swath of the cavern ceiling suddenly collapses. 01370_ E9-DY7(u) tweaks Twisted Machinery. 01381_ E9-DY7(u) builds Twisted Machinery. 01384_ E9-DY7(u) tweaks Twisted Machinery. 01457_ E9-DY7(u) cries out in pain. 01457_ E9-DY7(u) destroyed. Map ----- +----------------------------------------------------+ | ?????????????????????????????????????????????????? | | ?????????????????????????????????????????????????? | | ?????????????????????????????????????????????????? | | ?????????????????????????""??????????????????????? | | ???????????????????????##""??????????????????????? | | ???????????????????????#" ??????????????????????? | | ???????????????????????# ??????????????????????? | | ???????????????????????# ##????????????????????? | | ???????????????????????# # #????????????????????? | | ???????????????????????# $ ##???????????????????? | | ??????????????????????## #???????????????????? | | ??????????????????????# """""#?????????????##????? | | ??????????????????????# " #??????????????# ##??? | | ???????????????????????# R"#??????????????# #### | | ????? ??????#????????##" "#??????????????# | | ????? ##### ???????# " ?????????????## | | ????# ?####? R #?????????????# | | ???? ## ### % #?##########???# | | ???# "" = #?# " ## ##### | | ????? " ###"" # ## | | ????????????# "" | | ????????????## "" ### | | ?????????????## ##"" # ##### #?## | | ??????????????## ## ##" ##???###??? | | ???????????????# ?# ; " #????????? | | ???????????????## ?# @ ; " #????????? | | ????????????????##?#; " #???????? | | ???????????????????## " ##??????## | | ??????????????????# ## #??????## | | ??????????????????## ;#### ##??????# | | ???????????????????###; ;; ;##? #???????# | | ?????????????????????#####;;;#?# ## ##???????# # | | ??????????????????????????####?# #####????????### | | ???????????????????????????????# #???????????????? | | ???????????????????????????????##????????????????? | | ?????????????????????????????????????????????????? | | ?????????????????????????????????????????????????? | | ?????????????????????????????????????????????????? | | ?????????????????????????????????????????????????? | | ?????????????????????????????????????????????????? | | ?????????????????????????????????????????????????? | | ?????????????????????????????????????????????????? | | ?????????????????????????????????????????????????? | | ?????????????????????????????????????????????????? | | ?????????????????????????????????????????????????? | | ?????????????????????????????????????????????????? | | ?????????????????????????????????????????????????? | | ?????????????????????????????????????????????????? | | ?????????????????????????????????????????????????? | | ?????????????????????????????????????????????????? | +----------------------------------------------------+ Best States ------------- Heat Dissipation 39 Energy Generation 10 Energy Capacity 250 Matter Stores 300 Matter Capacity 300 Sight Range 16 Terrain Scan Range 16 Terrain Scan Density 10 Evasion (%) 55 Item Schematics ----------------- Hcp. Storage Unit | -10/Materials | Hacked Hcp. Matter Pod | -10/Materials | Hacked Robot Schematics ------------------ None Fabricated ------------ Nothing Alien Tech Used ----------------- None Achievements -------------- None Challenges ------------ None Game ------ Seed AssembledGatlingDevice Manual? 0 Play Time 00:19:48 Cumulative 28.7 hours Start 2024.04.20 @ 22:12:01 End 2024.04.20 @ 23:30:20 Sessions 1 Manual Loads 0 Difficulty Rogue Special Mode None Game No. 22 Rogue 22 Adventurer 0 Explorer 0 Win Type - Total 0 Types 0/0/0/0/0/0/0/0/0 Lore% 19 Gallery% 35 Achievement% 25 Wizard Run 0 Options --------- Layout 2 ASCII 0 Keyboard 0 Movement Numpad Keybinds 0 Fullscreen 2 Font 28/SmallcapsGlow Map View 59x48 Zoom Use 50% Tactical HUD 1 Map Filters NONE Filters NONE Steam 1 RUN: 0e8485eb-d595-4d0e-b34c-b1e46e5d0fbc